[Event "Titled Tuesday Blitz July 26 Early 2022"]
[White "Rustemov, Alexander"]
[Black "Narva, Mai"]
[WhiteFideId "4119002"]
[BlackFideId "4500512"]
[WhiteElo "2797"]
[BlackElo "2152"]
[Result "1-0"]
[Round "06"]
[TimeControl "180+1"]
[Date "2022.07.26"]
[WhiteClock "0:00:49"]
[BlackClock "0:00:15"]

1. d4 {[%clk 0:03:00]}  g6 {[%clk 0:02:43]} 2. c4 {[%clk 0:02:59]}  Bg7 {[%clk 0:02:40]} 3. Nf3 {[%clk 0:03:00]}  Nf6 {[%clk 0:02:36]} 4. g3 {[%clk 0:03:00]}  O-O {[%clk 0:02:37]} 5. Bg2 {[%clk 0:03:01]}  d6 {[%clk 0:02:37]} 6. Nc3 {[%clk 0:03:01]}  Nbd7 {[%clk 0:02:37]} 7. O-O {[%clk 0:03:01]}  c5 {[%clk 0:02:37]} 8. e4 {[%clk 0:02:58]}  Re8 {[%clk 0:02:31]} 9. h3 {[%clk 0:02:54]}  Rb8 {[%clk 0:02:31]} 10. Be3 {[%clk 0:02:53]}  cxd4 {[%clk 0:02:30]} 11. Nxd4 {[%clk 0:02:53]}  a6 {[%clk 0:02:30]} 12. Rc1 {[%clk 0:02:50]}  Nc5 {[%clk 0:02:24]} 13. Qd2 {[%clk 0:02:47]}  Bd7 {[%clk 0:02:20]} 14. Rfd1 {[%clk 0:02:45]}  b5 {[%clk 0:02:15]} 15. b4 {[%clk 0:02:41]}  Ne6 {[%clk 0:02:09]} 16. cxb5 {[%clk 0:02:33]}  axb5 {[%clk 0:02:07]} 17. Bf1 {[%clk 0:02:30]}  Nc7 {[%clk 0:01:39]} 18. Nb3 {[%clk 0:02:27]}  Qc8 {[%clk 0:01:32]} 19. Kh2 {[%clk 0:02:13]}  Qb7 {[%clk 0:01:32]} 20. Na5 {[%clk 0:02:11]}  Qa8 {[%clk 0:01:32]} 21. Bg2 {[%clk 0:02:08]}  Qa6 {[%clk 0:01:31]} 22. Nd5 {[%clk 0:02:00]}  Nfxd5 {[%clk 0:01:25]} 23. exd5 {[%clk 0:02:00]}  Rec8 {[%clk 0:01:26]} 24. Nc6 {[%clk 0:02:00]}  Bxc6 {[%clk 0:01:25]} 25. Rxc6 {[%clk 0:01:59]}  Qb7 {[%clk 0:01:21]} 26. Rdc1 {[%clk 0:01:59]}  Ne8 {[%clk 0:01:16]} 27. Qc2 {[%clk 0:01:52]}  Rd8 {[%clk 0:01:13]} 28. g4 {[%clk 0:01:42]}  Qa8 {[%clk 0:01:02]} 29. g5 {[%clk 0:01:39]}  Qa3 {[%clk 0:00:56]} 30. Qb3 {[%clk 0:01:35]}  Qxb3 {[%clk 0:00:50]} 31. axb3 {[%clk 0:01:36]}  e6 {[%clk 0:00:49]} 32. h4 {[%clk 0:01:32]}  Kf8 {[%clk 0:00:36]} 33. Bb6 {[%clk 0:01:31]}  Rd7 {[%clk 0:00:36]} 34. Bf1 {[%clk 0:01:26]}  h6 {[%clk 0:00:33]} 35. f4 {[%clk 0:01:25]}  e5 {[%clk 0:00:31]} 36. Kg3 {[%clk 0:01:22]}  exf4+ {[%clk 0:00:30]} 37. Kxf4 {[%clk 0:01:23]}  Be5+ {[%clk 0:00:31]} 38. Kg4 {[%clk 0:01:23]}  Ng7 {[%clk 0:00:30]} 39. Rc8+ {[%clk 0:01:22]}  Rxc8 {[%clk 0:00:30]} 40. Rxc8+ {[%clk 0:01:22]}  Ke7 {[%clk 0:00:30]} 41. Bxb5 {[%clk 0:01:22]}  Rb7 {[%clk 0:00:30]} 42. Rc7+ {[%clk 0:01:20]}  Rxc7 {[%clk 0:00:30]} 43. Bxc7 {[%clk 0:01:21]}  Bc3 {[%clk 0:00:28]} 44. gxh6 {[%clk 0:01:17]}  Nf5 {[%clk 0:00:27]} 45. h7 {[%clk 0:01:16]}  Ne3+ {[%clk 0:00:27]} 46. Kh3 {[%clk 0:01:14]}  Nxd5 {[%clk 0:00:26]} 47. Ba5 {[%clk 0:01:10]}  Kf8 {[%clk 0:00:20]} 48. Bc6 {[%clk 0:01:10]}  Ne7 {[%clk 0:00:15]} 49. b5 {[%clk 0:01:05]}  Bd4 {[%clk 0:00:16]} 50. Be4 {[%clk 0:00:54]}  f5 {[%clk 0:00:16]} 51. Bf3 {[%clk 0:00:54]}  Kg7 {[%clk 0:00:16]} 52. b6 {[%clk 0:00:54]}  d5 {[%clk 0:00:14]} 53. b7 {[%clk 0:00:54]}  Ba7 {[%clk 0:00:14]} 54. Bc7 {[%clk 0:00:54]}  Nc6 {[%clk 0:00:15]} 55. Bxd5 {[%clk 0:00:53]}  Bb8 {[%clk 0:00:14]} 56. Bxb8 {[%clk 0:00:47]}  Nxb8 {[%clk 0:00:14]} 57. Kg3 {[%clk 0:00:47]}  Kxh7 {[%clk 0:00:15]} 58. Kf4 {[%clk 0:00:48]}  Kg7 {[%clk 0:00:15]} 59. Ke5 {[%clk 0:00:48]}  Kf8 {[%clk 0:00:14]} 60. Kd6 {[%clk 0:00:48]}  Ke8 {[%clk 0:00:14]} 61. Kc7 {[%clk 0:00:48]}  Na6+ {[%clk 0:00:15]} 62. Kb6 {[%clk 0:00:49]}  Nb8 {[%clk 0:00:15]} 63. Ka7 {[%clk 0:00:49]} 1-0


[Site "https://www.chess.com"]

[Event "Titled Tuesday Blitz July 26 Early 2022"]
[White "Sarana, Alexey"]
[Black "Vakhlamov, Igor L."]
[WhiteFideId "24133795"]
[BlackFideId "24126748"]
[WhiteElo "2666"]
[BlackElo "2401"]
[Result "1-0"]
[Round "06"]
[TimeControl "180+1"]
[Date "2022.07.26"]
[WhiteClock "0:00:39"]
[BlackClock "0:00:03"]

1. d4 {[%clk 0:02:57]}  d5 {[%clk 0:03:00]} 2. c4 {[%clk 0:02:58]}  e6 {[%clk 0:03:00]} 3. Nc3 {[%clk 0:02:58]}  c5 {[%clk 0:03:01]} 4. cxd5 {[%clk 0:02:56]}  cxd4 {[%clk 0:03:01]} 5. Qa4+ {[%clk 0:02:55]}  Bd7 {[%clk 0:03:01]} 6. Qxd4 {[%clk 0:02:55]}  exd5 {[%clk 0:03:02]} 7. Qxd5 {[%clk 0:02:55]}  Nf6 {[%clk 0:03:02]} 8. Qd1 {[%clk 0:02:54]}  Bc5 {[%clk 0:03:02]} 9. e3 {[%clk 0:02:53]}  O-O {[%clk 0:03:02]} 10. Nf3 {[%clk 0:02:52]}  Qe7 {[%clk 0:03:02]} 11. Bd3 {[%clk 0:02:46]}  Rd8 {[%clk 0:03:00]} 12. Qe2 {[%clk 0:02:42]}  Nc6 {[%clk 0:02:57]} 13. a3 {[%clk 0:02:42]}  Ne5 {[%clk 0:02:47]} 14. Nxe5 {[%clk 0:02:34]}  Qxe5 {[%clk 0:02:48]} 15. O-O {[%clk 0:02:03]}  Ng4 {[%clk 0:02:13]} 16. f4 {[%clk 0:02:02]}  Qe7 {[%clk 0:01:33]} 17. Rf3 {[%clk 0:01:38]}  Bc6 {[%clk 0:01:20]} 18. Rh3 {[%clk 0:01:34]}  Nf6 {[%clk 0:01:04]} 19. b4 {[%clk 0:01:33]}  Bb6 {[%clk 0:01:03]} 20. Bb2 {[%clk 0:01:33]}  h6 {[%clk 0:01:00]} 21. Re1 {[%clk 0:01:29]}  Re8 {[%clk 0:00:55]} 22. Rg3 {[%clk 0:01:27]}  Rad8 {[%clk 0:00:52]} 23. Kh1 {[%clk 0:01:19]}  a6 {[%clk 0:00:49]} 24. e4 {[%clk 0:01:13]}  Bd4 {[%clk 0:00:39]} 25. e5 {[%clk 0:00:46]}  Bxc3 {[%clk 0:00:26]} 26. Bxc3 {[%clk 0:00:47]}  Nd5 {[%clk 0:00:24]} 27. Qg4 {[%clk 0:00:43]}  g6 {[%clk 0:00:06]} 28. Bb2 {[%clk 0:00:41]}  Bd7 {[%clk 0:00:04]} 29. f5 {[%clk 0:00:41]}  Qg5 {[%clk 0:00:03]} 30. Qe2 {[%clk 0:00:39]} 1-0


[Site "https://www.chess.com"]

[Event "Titled Tuesday Blitz July 26 Early 2022"]
[White "Shukhman, Anna"]
[Black "Schekachikhin, Maksim"]
[WhiteFideId "54180058"]
[BlackFideId "24177830"]
[WhiteElo "1726"]
[BlackElo "2239"]
[Result "1/2-1/2"]
[Round "06"]
[TimeControl "180+1"]
[Date "2022.07.27"]
[WhiteClock "0:00:39"]
[BlackClock "0:00:19"]

1. e4 {[%clk 0:03:00]}  c5 {[%clk 0:02:59]} 2. Nf3 {[%clk 0:02:59]}  d6 {[%clk 0:03:00]} 3. d4 {[%clk 0:02:59]}  cxd4 {[%clk 0:03:01]} 4. Nxd4 {[%clk 0:03:00]}  Nf6 {[%clk 0:03:01]} 5. Nc3 {[%clk 0:02:59]}  Bd7 {[%clk 0:03:02]} 6. Bg5 {[%clk 0:02:57]}  e6 {[%clk 0:03:01]} 7. Qd2 {[%clk 0:02:56]}  Be7 {[%clk 0:03:01]} 8. f3 {[%clk 0:02:55]}  Nc6 {[%clk 0:03:00]} 9. O-O-O {[%clk 0:02:54]}  a6 {[%clk 0:03:00]} 10. h4 {[%clk 0:02:54]}  h6 {[%clk 0:02:59]} 11. Be3 {[%clk 0:02:53]}  Nxd4 {[%clk 0:02:58]} 12. Bxd4 {[%clk 0:02:52]}  b5 {[%clk 0:02:58]} 13. g4 {[%clk 0:02:51]}  b4 {[%clk 0:02:55]} 14. Nb1 {[%clk 0:02:50]}  a5 {[%clk 0:02:55]} 15. Rg1 {[%clk 0:02:49]}  Qc7 {[%clk 0:02:45]} 16. g5 {[%clk 0:02:46]}  hxg5 {[%clk 0:02:46]} 17. hxg5 {[%clk 0:02:46]}  Nh5 {[%clk 0:02:46]} 18. g6 {[%clk 0:02:46]}  f6 {[%clk 0:02:42]} 19. a3 {[%clk 0:02:37]}  Rb8 {[%clk 0:02:37]} 20. axb4 {[%clk 0:02:34]}  axb4 {[%clk 0:02:37]} 21. b3 {[%clk 0:02:31]}  e5 {[%clk 0:02:33]} 22. Be3 {[%clk 0:02:23]}  Be6 {[%clk 0:02:32]} 23. Kb2 {[%clk 0:02:01]}  Qa5 {[%clk 0:02:29]} 24. Qd3 {[%clk 0:01:50]}  Nf4 {[%clk 0:02:13]} 25. Bxf4 {[%clk 0:01:48]}  exf4 {[%clk 0:02:14]} 26. Qd4 {[%clk 0:01:45]}  Rh2 {[%clk 0:01:59]} 27. Bc4 {[%clk 0:01:37]}  Rc8 {[%clk 0:01:46]} 28. Rd2 {[%clk 0:01:33]}  Rxd2 {[%clk 0:01:42]} 29. Nxd2 {[%clk 0:01:33]}  Qa3+ {[%clk 0:01:41]} 30. Kb1 {[%clk 0:01:33]}  Bxc4 {[%clk 0:01:23]} 31. Nxc4 {[%clk 0:01:32]}  Qa6 {[%clk 0:01:23]} 32. Rh1 {[%clk 0:01:30]}  Kd7 {[%clk 0:01:22]} 33. e5 {[%clk 0:01:28]}  fxe5 {[%clk 0:01:19]} 34. Nxe5+ {[%clk 0:01:26]}  Kc7 {[%clk 0:01:19]} 35. Qc4+ {[%clk 0:01:17]}  Qxc4 {[%clk 0:01:18]} 36. Nxc4 {[%clk 0:01:18]}  Bf6 {[%clk 0:01:17]} 37. Kc1 {[%clk 0:01:18]}  Bc3 {[%clk 0:01:17]} 38. Kd1 {[%clk 0:01:17]}  d5 {[%clk 0:01:15]} 39. Nd2 {[%clk 0:01:15]}  Re8 {[%clk 0:01:11]} 40. Re1 {[%clk 0:01:06]}  Rxe1+ {[%clk 0:00:59]} 41. Kxe1 {[%clk 0:01:06]}  Kd6 {[%clk 0:01:00]} 42. Ke2 {[%clk 0:01:06]}  Ke5 {[%clk 0:00:57]} 43. Nf1 {[%clk 0:00:48]}  Kf5 {[%clk 0:00:56]} 44. Kd3 {[%clk 0:00:47]}  Kxg6 {[%clk 0:00:55]} 45. Nh2 {[%clk 0:00:47]}  Kf5 {[%clk 0:00:54]} 46. Ng4 {[%clk 0:00:48]}  g5 {[%clk 0:00:54]} 47. Nh2 {[%clk 0:00:47]}  Kg6 {[%clk 0:00:52]} 48. Ng4 {[%clk 0:00:48]}  Kh5 {[%clk 0:00:51]} 49. Ke2 {[%clk 0:00:46]}  Kh4 {[%clk 0:00:52]} 50. Nf2 {[%clk 0:00:46]}  Kg3 {[%clk 0:00:51]} 51. Ng4 {[%clk 0:00:46]}  Bd4 {[%clk 0:00:48]} 52. Nh6 {[%clk 0:00:46]}  Kg2 {[%clk 0:00:32]} 53. Ng4 {[%clk 0:00:45]}  Kh3 {[%clk 0:00:30]} 54. Nh6 {[%clk 0:00:44]}  Bc3 {[%clk 0:00:28]} 55. Ng4 {[%clk 0:00:43]}  Kh4 {[%clk 0:00:28]} 56. Nf2 {[%clk 0:00:42]}  Kh5 {[%clk 0:00:28]} 57. Ng4 {[%clk 0:00:42]}  Kg6 {[%clk 0:00:28]} 58. Kd3 {[%clk 0:00:42]}  Kf5 {[%clk 0:00:28]} 59. Nh6+ {[%clk 0:00:42]}  Ke6 {[%clk 0:00:27]} 60. Ng4 {[%clk 0:00:42]}  Bg7 {[%clk 0:00:27]} 61. Nf2 {[%clk 0:00:41]}  Bc3 {[%clk 0:00:20]} 62. Ng4 {[%clk 0:00:41]}  Be1 {[%clk 0:00:20]} 63. Nh2 {[%clk 0:00:39]}  Kf5 {[%clk 0:00:19]} 64. Ng4 {[%clk 0:00:39]}  Bc3 {[%clk 0:00:19]} 1/2-1/2


[Site "https://www.chess.com"]

[Event "Titled Tuesday Blitz July 26 Early 2022"]
[White "Skliarov, Viktor"]
[Black "Yuan, Qingyu"]
[WhiteFideId "14106736"]
[BlackFideId "8609772"]
[WhiteElo "2257"]
[BlackElo "2359"]
[Result "0-1"]
[Round "06"]
[TimeControl "180+1"]
[Date "2022.07.26"]
[WhiteClock "0:00:02"]
[BlackClock "0:00:05"]

1. e4 {[%clk 0:03:00]}  c6 {[%clk 0:03:00]} 2. d4 {[%clk 0:03:00]}  d5 {[%clk 0:03:00]} 3. e5 {[%clk 0:03:01]}  c5 {[%clk 0:03:01]} 4. dxc5 {[%clk 0:03:01]}  e6 {[%clk 0:03:01]} 5. a3 {[%clk 0:03:00]}  Bxc5 {[%clk 0:03:02]} 6. b4 {[%clk 0:03:01]}  Be7 {[%clk 0:03:02]} 7. Bb2 {[%clk 0:02:58]}  a5 {[%clk 0:02:56]} 8. b5 {[%clk 0:02:58]}  Nd7 {[%clk 0:02:56]} 9. Nf3 {[%clk 0:02:58]}  f6 {[%clk 0:02:57]} 10. c4 {[%clk 0:02:48]}  Nxe5 {[%clk 0:02:57]} 11. Nxe5 {[%clk 0:02:46]}  fxe5 {[%clk 0:02:58]} 12. Bxe5 {[%clk 0:02:39]}  Nf6 {[%clk 0:02:58]} 13. cxd5 {[%clk 0:02:34]}  Qxd5 {[%clk 0:02:58]} 14. Qxd5 {[%clk 0:02:33]}  exd5 {[%clk 0:02:58]} 15. Nc3 {[%clk 0:02:13]}  Bf5 {[%clk 0:02:53]} 16. Be2 {[%clk 0:02:08]}  O-O {[%clk 0:02:37]} 17. O-O {[%clk 0:02:04]}  Rac8 {[%clk 0:02:11]} 18. Rad1 {[%clk 0:01:51]}  Bxa3 {[%clk 0:02:03]} 19. Nxd5 {[%clk 0:01:38]}  Bc2 {[%clk 0:01:37]} 20. Nxf6+ {[%clk 0:01:18]}  gxf6 {[%clk 0:01:36]} 21. Ra1 {[%clk 0:01:18]}  fxe5 {[%clk 0:01:18]} 22. Rxa3 {[%clk 0:01:18]}  b6 {[%clk 0:01:18]} 23. Bg4 {[%clk 0:00:47]}  Rc5 {[%clk 0:01:12]} 24. Bd7 {[%clk 0:00:46]}  Rd8 {[%clk 0:00:54]} 25. Bc6 {[%clk 0:00:44]}  Rd2 {[%clk 0:00:51]} 26. h4 {[%clk 0:00:29]}  Bd3 {[%clk 0:00:43]} 27. Re1 {[%clk 0:00:29]}  Bxb5 {[%clk 0:00:37]} 28. Rg3+ {[%clk 0:00:25]}  Kf8 {[%clk 0:00:35]} 29. Be4 {[%clk 0:00:22]}  Rd7 {[%clk 0:00:21]} 30. Ree3 {[%clk 0:00:19]}  Rf7 {[%clk 0:00:15]} 31. h5 {[%clk 0:00:15]}  Bc4 {[%clk 0:00:12]} 32. Ra3 {[%clk 0:00:11]}  Be6 {[%clk 0:00:10]} 33. h6 {[%clk 0:00:10]}  Rc4 {[%clk 0:00:10]} 34. f3 {[%clk 0:00:10]}  a4 {[%clk 0:00:09]} 35. Bd3 {[%clk 0:00:08]}  Rb4 {[%clk 0:00:08]} 36. Rg5 {[%clk 0:00:07]}  Rb3 {[%clk 0:00:08]} 37. Rxb3 {[%clk 0:00:07]}  Bxb3 {[%clk 0:00:08]} 38. Rxe5 {[%clk 0:00:07]}  a3 {[%clk 0:00:07]} 39. Bb5 {[%clk 0:00:06]}  Re7 {[%clk 0:00:06]} 40. Rf5+ {[%clk 0:00:07]}  Kg8 {[%clk 0:00:05]} 41. Rg5+ {[%clk 0:00:07]}  Kf8 {[%clk 0:00:05]} 42. Rf5+ {[%clk 0:00:07]}  Rf7 {[%clk 0:00:04]} 43. Re5 {[%clk 0:00:06]}  Rc7 {[%clk 0:00:04]} 44. Re8+ {[%clk 0:00:05]}  Kf7 {[%clk 0:00:05]} 45. Ra8 {[%clk 0:00:05]}  a2 {[%clk 0:00:05]} 46. Kh2 {[%clk 0:00:06]}  Rc1 {[%clk 0:00:05]} 47. Bd3 {[%clk 0:00:04]}  a1=Q {[%clk 0:00:05]} 48. Rxa1 {[%clk 0:00:04]}  Rxa1 {[%clk 0:00:06]} 49. Bxh7 {[%clk 0:00:05]}  Be6 {[%clk 0:00:06]} 50. Be4 {[%clk 0:00:05]}  b5 {[%clk 0:00:06]} 51. g4 {[%clk 0:00:05]}  b4 {[%clk 0:00:06]} 52. g5 {[%clk 0:00:05]}  Ra5 {[%clk 0:00:05]} 53. f4 {[%clk 0:00:05]}  Rb5 {[%clk 0:00:04]} 54. g6+ {[%clk 0:00:05]}  Kf6 {[%clk 0:00:04]} 55. g7 {[%clk 0:00:02]}  Rh5+ {[%clk 0:00:04]} 56. Kg3 {[%clk 0:00:02]}  Rxh6 {[%clk 0:00:05]} 57. g8=Q {[%clk 0:00:02]}  Bxg8 {[%clk 0:00:05]} 0-1


[Site "https://www.chess.com"]

[Event "Titled Tuesday Blitz July 26 Early 2022"]
[White "Tarasova, Viktoriya"]
[Black "Omariev, Maksim"]
[WhiteFideId "4175840"]
[BlackFideId "4193423"]
[WhiteElo "2182"]
[BlackElo "2498"]
[Result "0-1"]
[Round "06"]
[TimeControl "180+1"]
[Date "2022.07.27"]
[WhiteClock "0:00:06"]
[BlackClock "0:00:10"]

1. d4 {[%clk 0:03:00]}  h5 {[%clk 0:02:54]} 2. c4 {[%clk 0:03:00]}  h4 {[%clk 0:02:55]} 3. h3 {[%clk 0:03:00]}  d6 {[%clk 0:02:55]} 4. Nf3 {[%clk 0:02:59]}  Nc6 {[%clk 0:02:56]} 5. d5 {[%clk 0:02:58]}  Ne5 {[%clk 0:02:56]} 6. Nxe5 {[%clk 0:02:58]}  dxe5 {[%clk 0:02:56]} 7. Nc3 {[%clk 0:02:58]}  e6 {[%clk 0:02:56]} 8. e4 {[%clk 0:02:58]}  Ne7 {[%clk 0:02:44]} 9. Be3 {[%clk 0:02:56]}  Ng6 {[%clk 0:02:44]} 10. Qc2 {[%clk 0:02:55]}  exd5 {[%clk 0:02:16]} 11. cxd5 {[%clk 0:02:46]}  a6 {[%clk 0:02:15]} 12. Be2 {[%clk 0:02:43]}  Bd6 {[%clk 0:02:15]} 13. O-O {[%clk 0:02:40]}  O-O {[%clk 0:02:09]} 14. a4 {[%clk 0:02:32]}  Nf4 {[%clk 0:01:58]} 15. Bf3 {[%clk 0:02:27]}  Qg5 {[%clk 0:01:58]} 16. Kh2 {[%clk 0:02:26]}  f5 {[%clk 0:01:37]} 17. g3 {[%clk 0:02:17]}  hxg3+ {[%clk 0:00:59]} 18. fxg3 {[%clk 0:02:16]}  Rf6 {[%clk 0:00:55]} 19. gxf4 {[%clk 0:01:58]}  exf4 {[%clk 0:00:56]} 20. Bd4 {[%clk 0:01:14]}  Qg3+ {[%clk 0:00:38]} 21. Kh1 {[%clk 0:01:10]}  Rh6 {[%clk 0:00:36]} 22. Bg2 {[%clk 0:00:51]}  f3 {[%clk 0:00:32]} 23. e5 {[%clk 0:00:50]}  fxg2+ {[%clk 0:00:26]} 24. Qxg2 {[%clk 0:00:50]}  Rxh3+ {[%clk 0:00:20]} 25. Kg1 {[%clk 0:00:50]}  Qh4 {[%clk 0:00:19]} 26. Ne2 {[%clk 0:00:34]}  Be7 {[%clk 0:00:08]} 27. Rf4 {[%clk 0:00:27]}  Qh6 {[%clk 0:00:07]} 28. Raf1 {[%clk 0:00:19]}  Bg5 {[%clk 0:00:07]} 29. R4f3 {[%clk 0:00:18]}  f4 {[%clk 0:00:06]} 30. e6 {[%clk 0:00:17]}  Rh4 {[%clk 0:00:05]} 31. e7 {[%clk 0:00:16]}  Bd7 {[%clk 0:00:06]} 32. Nxf4 {[%clk 0:00:16]}  Bxe7 {[%clk 0:00:05]} 33. Ne6 {[%clk 0:00:15]}  Bxe6 {[%clk 0:00:04]} 34. dxe6 {[%clk 0:00:16]}  Bd6 {[%clk 0:00:04]} 35. Rf7 {[%clk 0:00:15]}  Rxd4 {[%clk 0:00:04]} 36. e7 {[%clk 0:00:14]}  Bc5 {[%clk 0:00:02]} 37. Rf8+ {[%clk 0:00:14]}  Rxf8 {[%clk 0:00:01]} 38. exf8=Q+ {[%clk 0:00:13]}  Bxf8 {[%clk 0:00:02]} 39. Qxb7 {[%clk 0:00:12]}  Rd7 {[%clk 0:00:02]} 40. Qf3 {[%clk 0:00:11]}  Qb6+ {[%clk 0:00:01]} 41. Kh1 {[%clk 0:00:11]}  Qd6 {[%clk 0:00:01]} 42. Qf5 {[%clk 0:00:09]}  Qd5+ {[%clk 0:00:01]} 43. Qxd5+ {[%clk 0:00:09]}  Rxd5 {[%clk 0:00:02]} 44. Kg2 {[%clk 0:00:10]}  Ra5 {[%clk 0:00:03]} 45. b3 {[%clk 0:00:10]}  Rg5+ {[%clk 0:00:03]} 46. Kh3 {[%clk 0:00:10]}  Rh5+ {[%clk 0:00:04]} 47. Kg4 {[%clk 0:00:11]}  Rh6 {[%clk 0:00:05]} 48. Rf3 {[%clk 0:00:11]}  Rd6 {[%clk 0:00:05]} 49. Rf5 {[%clk 0:00:10]}  Rd7 {[%clk 0:00:06]} 50. Ra5 {[%clk 0:00:10]}  Rd6 {[%clk 0:00:06]} 51. Kf5 {[%clk 0:00:10]}  Rb6 {[%clk 0:00:06]} 52. Rd5 {[%clk 0:00:09]}  Bd6 {[%clk 0:00:07]} 53. Rd3 {[%clk 0:00:08]}  Rb4 {[%clk 0:00:07]} 54. Ke6 {[%clk 0:00:09]}  Kh7 {[%clk 0:00:07]} 55. Kf7 {[%clk 0:00:07]}  Kh6 {[%clk 0:00:07]} 56. Rh3+ {[%clk 0:00:06]}  Kg5 {[%clk 0:00:07]} 57. Kxg7 {[%clk 0:00:06]}  a5 {[%clk 0:00:07]} 58. Kf7 {[%clk 0:00:06]}  Re4 {[%clk 0:00:07]} 59. Rd3 {[%clk 0:00:04]}  Bb4 {[%clk 0:00:07]} 60. Rd7 {[%clk 0:00:04]}  c5 {[%clk 0:00:07]} 61. Rd5+ {[%clk 0:00:04]}  Kg4 {[%clk 0:00:07]} 62. Rd7 {[%clk 0:00:05]}  Kf3 {[%clk 0:00:08]} 63. Rd3+ {[%clk 0:00:05]}  Ke2 {[%clk 0:00:08]} 64. Rd7 {[%clk 0:00:05]}  Ke3 {[%clk 0:00:08]} 65. Rd6 {[%clk 0:00:05]}  Rd4 {[%clk 0:00:09]} 66. Re6+ {[%clk 0:00:05]}  Kd3 {[%clk 0:00:09]} 67. Rh6 {[%clk 0:00:05]}  Kc2 {[%clk 0:00:09]} 68. Rh3 {[%clk 0:00:06]}  Rd3 {[%clk 0:00:09]} 69. Rh2+ {[%clk 0:00:06]}  Kxb3 {[%clk 0:00:10]} 70. Ke6 {[%clk 0:00:06]}  c4 {[%clk 0:00:10]} 0-1


[Site "https://www.chess.com"]

[Event "Titled Tuesday Blitz July 26 Early 2022"]
[White "Urbina Perez, Juan Antonio"]
[Black "Mikhailovsky, Vladimir"]
[WhiteFideId "2217368"]
[BlackFideId "34105414"]
[WhiteElo "2192"]
[BlackElo "2303"]
[Result "0-1"]
[Round "06"]
[TimeControl "180+1"]
[Date "2022.07.27"]
[WhiteClock "0:00:37"]
[BlackClock "0:00:40"]

1. e4 {[%clk 0:02:57]}  c6 {[%clk 0:02:57]} 2. d4 {[%clk 0:02:57]}  d5 {[%clk 0:02:58]} 3. e5 {[%clk 0:02:58]}  Bf5 {[%clk 0:02:58]} 4. Nd2 {[%clk 0:02:57]}  e6 {[%clk 0:02:56]} 5. Nb3 {[%clk 0:02:57]}  a6 {[%clk 0:02:56]} 6. a4 {[%clk 0:02:57]}  c5 {[%clk 0:02:56]} 7. dxc5 {[%clk 0:02:55]}  Bxc5 {[%clk 0:02:56]} 8. Nxc5 {[%clk 0:02:51]}  Qa5+ {[%clk 0:02:57]} 9. c3 {[%clk 0:02:52]}  Qxc5 {[%clk 0:02:57]} 10. Be3 {[%clk 0:02:44]}  Qc7 {[%clk 0:02:57]} 11. Nf3 {[%clk 0:02:43]}  Nd7 {[%clk 0:02:56]} 12. Bd4 {[%clk 0:02:42]}  Ne7 {[%clk 0:02:56]} 13. Bd3 {[%clk 0:02:39]}  O-O {[%clk 0:02:55]} 14. O-O {[%clk 0:02:38]}  Nc5 {[%clk 0:02:36]} 15. Bc2 {[%clk 0:02:22]}  b5 {[%clk 0:02:32]} 16. axb5 {[%clk 0:02:19]}  axb5 {[%clk 0:02:33]} 17. Rxa8 {[%clk 0:02:19]}  Rxa8 {[%clk 0:02:33]} 18. Bxf5 {[%clk 0:02:14]}  Nxf5 {[%clk 0:02:32]} 19. Qe2 {[%clk 0:02:07]}  Nb3 {[%clk 0:02:20]} 20. Qxb5 {[%clk 0:01:58]}  Rb8 {[%clk 0:02:19]} 21. Qe2 {[%clk 0:01:57]}  Nbxd4 {[%clk 0:02:17]} 22. cxd4 {[%clk 0:01:58]}  Qb6 {[%clk 0:02:17]} 23. Qd2 {[%clk 0:01:29]}  Qxb2 {[%clk 0:02:05]} 24. Qxb2 {[%clk 0:01:30]}  Rxb2 {[%clk 0:02:06]} 25. Rd1 {[%clk 0:01:30]}  Kf8 {[%clk 0:02:04]} 26. g4 {[%clk 0:01:29]}  Ne7 {[%clk 0:01:51]} 27. Rc1 {[%clk 0:01:23]}  Ng6 {[%clk 0:01:51]} 28. Rc8+ {[%clk 0:01:19]}  Ke7 {[%clk 0:01:51]} 29. Rc7+ {[%clk 0:01:19]}  Ke8 {[%clk 0:01:51]} 30. Ng5 {[%clk 0:01:12]}  Nf4 {[%clk 0:01:47]} 31. h3 {[%clk 0:01:10]}  h6 {[%clk 0:01:00]} 32. Nxf7 {[%clk 0:01:09]}  Nxh3+ {[%clk 0:01:00]} 33. Kg2 {[%clk 0:01:08]}  Rxf2+ {[%clk 0:00:57]} 34. Kxh3 {[%clk 0:01:08]}  Rxf7 {[%clk 0:00:58]} 35. Rc6 {[%clk 0:01:07]}  Kd7 {[%clk 0:00:53]} 36. Rd6+ {[%clk 0:01:05]}  Ke7 {[%clk 0:00:53]} 37. Ra6 {[%clk 0:01:05]}  Rf3+ {[%clk 0:00:50]} 38. Kh4 {[%clk 0:01:01]}  Kf7 {[%clk 0:00:50]} 39. g5 {[%clk 0:00:53]}  Rf4+ {[%clk 0:00:49]} 40. Kg3 {[%clk 0:00:47]}  hxg5 {[%clk 0:00:42]} 41. Ra7+ {[%clk 0:00:47]}  Kg6 {[%clk 0:00:42]} 42. Re7 {[%clk 0:00:48]}  Kf5 {[%clk 0:00:42]} 43. Rxg7 {[%clk 0:00:48]}  Rxd4 {[%clk 0:00:41]} 44. Rf7+ {[%clk 0:00:46]}  Kxe5 {[%clk 0:00:41]} 45. Rg7 {[%clk 0:00:47]}  Kf6 {[%clk 0:00:41]} 46. Rg8 {[%clk 0:00:47]}  Ra4 {[%clk 0:00:40]} 47. Rf8+ {[%clk 0:00:47]}  Ke5 {[%clk 0:00:41]} 48. Rg8 {[%clk 0:00:47]}  d4 {[%clk 0:00:40]} 49. Rxg5+ {[%clk 0:00:45]}  Ke4 {[%clk 0:00:41]} 50. Kf2 {[%clk 0:00:45]}  Ra2+ {[%clk 0:00:41]} 51. Ke1 {[%clk 0:00:45]}  e5 {[%clk 0:00:41]} 52. Rg4+ {[%clk 0:00:45]}  Kd3 {[%clk 0:00:42]} 53. Rg3+ {[%clk 0:00:45]}  Kc4 {[%clk 0:00:42]} 54. Kd1 {[%clk 0:00:44]}  e4 {[%clk 0:00:42]} 55. Rg8 {[%clk 0:00:44]}  e3 {[%clk 0:00:42]} 56. Rb8 {[%clk 0:00:42]}  Kd3 {[%clk 0:00:41]} 57. Rb3+ {[%clk 0:00:41]}  Ke4 {[%clk 0:00:41]} 58. Rb8 {[%clk 0:00:41]}  Ra1+ {[%clk 0:00:39]} 59. Kc2 {[%clk 0:00:41]}  e2 {[%clk 0:00:39]} 60. Re8+ {[%clk 0:00:39]}  Kf3 {[%clk 0:00:40]} 61. Rf8+ {[%clk 0:00:39]}  Kg4 {[%clk 0:00:40]} 62. Rg8+ {[%clk 0:00:37]}  Kf5 {[%clk 0:00:40]} 63. Rf8+ {[%clk 0:00:37]}  Kg6 {[%clk 0:00:40]} 0-1


[Site "https://www.chess.com"]